Cogmind - Beta 16.1 @@@ ROGUE MODE // 2026.03.27 @ 13:32:17 Player: ash Result: Self-destructed Performance ------------- Evolutions (4) 2000 Regions Visited (7) 1400 Robots Destroyed (30) 150 Value Destroyed (983) 983 Prototype IDs (14) 280 Alien Tech Used (0) 0 Bonus (511) 511 TOTAL SCORE: 5324 Bonus ------- Follower Combat Kills 211 Registered with UFD 300 Cogmind --------- Core Integrity 777/850 Matter 222/300 Energy 69/100 System Corruption 2% Temperature Warm (108) Movement Rolling (123) Ox2 Location -6/Factory Parts ------- > --- POWER (1) -------- (None) > --- PROPULSION (4) --- Compact Wheel Armored Wheel Armored Wheel > --- UTILITY (8) ------ Huge Storage Unit Structural Scanner Machine Analyzer Improved Sensor Array Advanced Signal Interpreter Improved Weapon Shielding Layered Light Armor Plating Improved System Restoration Module > --- WEAPON (2) ------- Heavy Plasma Cannon Improved Assault Rifle > --- INVENTORY (25) --- Improved Ion Engine Light Deuterium Engine Light Deuterium Engine Gravmag System VTOL Module VTOL Module VTOL Module Small Storage Unit Medium Matter Pod (100) Weight Redist. System Machine Analyzer Sensor Array Signal Interpreter Advanced Signal Interpreter Transmission Jammer ECM Suite Layered Medium Armor Plating Shield Generator Plasma Rifle Improved Assault Rifle Improved Assault Rifle Precision Rocket Launcher Precision Rocket Launcher Improved Datajack Flail Peak State ------------ > --- POWER ------------ Angular Momentum Engine > --- PROPULSION ------- Compact Wheel Armored Wheel Armored Wheel > --- UTILITY ---------- Huge Storage Unit Structural Scanner Machine Analyzer Improved Sensor Array Advanced Signal Interpreter Improved Weapon Shielding Layered Light Armor Plating Layered Medium Armor Plating > --- WEAPON ----------- Improved Assault Rifle Precision Rocket Launcher > --- INVENTORY -------- Improved Ion Engine Light Deuterium Engine Light Deuterium Engine Light Deuterium Engine Gravmag System VTOL Module Heat Sink Small Storage Unit Medium Matter Pod Weight Redist. System Machine Analyzer Sensor Array Signal Interpreter Advanced Signal Interpreter ECM Suite Shield Generator Improved System Restoration Module Improved System Restoration Module Plasma Rifle Heavy Plasma Cannon Improved Assault Rifle Improved Assault Rifle Precision Rocket Launcher Improved Datajack Flail [Rating: 51] Favorites ----------- Power Improved Ion Engine Engine Improved Ion Engine Propulsion Aluminum Leg Treads Light Treads Leg Aluminum Leg Wheel Armored Wheel Utility Structural Scanner Device Structural Scanner Storage Large Storage Unit Processor Advanced Signal Interpreter Protection Light Armor Plating Weapon Improved Assault Rifle Energy Gun EM Pulse Gun Energy Cannon Heavy Plasma Cannon Ballistic Gun Improved Assault Rifle Launcher Precision Rocket Launcher Special Weapon Mining Laser Impact Weapon Flail Slashing Weapon Carbide Saw Special Melee Weapon Improved Datajack Build | -11 -10 -10 -9 -9 -9 -9 -6 ------- Run | Yrd Mat Min Mat Sto Rec Scr Fac Slots Evolved 8 | . . . 2 . . . 6 Power . | . . . . . . . . Propulsion 2 | . . . 2 . . . . Utility 6 | . . . . . . . 6 Weapon . | . . . . . . . . Parts Attached 53 | . 4 . 4 21 . 9 15 Power 5 | . 1 . . 1 . 1 2 Engine 5 | . 1 . . 1 . 1 2 Core . | . . . . . . . . Reactor . | . . . . . . . . Propulsion 15 | . . . 2 8 . 5 . Treads 2 | . . . 1 1 . . . Leg 7 | . . . . 6 . 1 . Wheel 6 | . . . 1 1 . 4 . Hover . | . . . . . . . . Flight . | . . . . . . . . Utility 14 | . 3 . 1 2 . 1 7 Device 3 | . 1 . . . . . 2 Storage 2 | . 1 . . . . 1 . Processor 4 | . 1 . 1 . . . 2 Hackware . | . . . . . . . . Protection 5 | . . . . 2 . . 3 Artifact . | . . . . . . . . Weapon 19 | . . . 1 10 . 2 6 Energy Gun 3 | . . . . 2 . 1 . Energy Cannon 1 | . . . . . . . 1 Ballistic Gun 7 | . . . . 6 . 1 . Ballistic Cannon . | . . . . . . . . Launcher 4 | . . . . 2 . . 2 Special Weapon 1 | . . . 1 . . . . Impact Weapon 1 | . . . . . . . 1 Slashing Weapon 1 | . . . . . . . 1 Piercing Weapon . | . . . . . . . . Special Melee Weapon 1 | . . . . . . . 1 Unidentified Prototypes 2 | . . . . 1 . . 1 Parts Lost 4 | . . . . 1 . . 3 Power 1 | . . . . . . . 1 Propulsion 2 | . . . . 1 . . 1 Utility 1 | . . . . . . . 1 Weapon . | . . . . . . . . Highest Loss Streak 1 | . . . . 1 . . 1 To Critical Strikes . | . . . . . . . . Average Backups 15 | . 7 10 9 14 15 15 23 Power 1 | . 1 1 1 1 1 1 3 Propulsion 1 | . 3 3 1 2 3 1 1 Utility 6 | . 1 3 4 5 5 6 10 Weapon 5 | . 1 3 3 5 6 6 6 Tool/Special . | . . . . . . . . Unused Backups 39 | . 7 . . 7 . 2 23 Power 5 | . 1 . . 1 . 1 2 Propulsion 11 | . 3 . . 2 . 1 5 Utility 16 | . 1 . . 2 . . 13 Weapon 7 | . 2 . . 2 . . 3 Tool/Special . | . . . . . . . . Average Slot Usage (%) 95 | . 97 100 98 99 100 95 89 Engine 10 | . 14 14 11 11 11 11 5 Leg 17 | . 28 28 22 33 44 12 . Wheel 19 | . . . 9 7 . 31 23 Device 10 | . 6 14 11 8 11 11 14 Storage 10 | . 14 14 11 11 11 11 6 Processor 2 | . 5 . . . . . 11 Protection 2 | . . . . 2 . . 11 Energy Gun 4 | . 28 28 16 1 . . . Ballistic Gun 13 | . . . . 17 22 17 9 Peak Build Rating 51 | . 8 8 10 16 16 19 51 Average Rating 19 | . 6 8 9 14 16 16 41 On Entrance 11 | 6 6 8 8 10 16 16 19 Avg Prop Armor Cover (%) 11 | . . . 20 10 . 13 . Naked Turns . | . . . . . . . . Heaviest Build 122 | 12 30 30 30 36 34 94 122 Greatest Support 50 | 20 20 20 10 40 40 50 50 Greatest Overweight (x) 3 | . 1 1 2 2 . 1 3 Average Overweight (x) . | . . 1 2 . . . 1 Largest Inventory Capacity 25 | . 15 15 15 15 15 25 25 Average Capacity 17 | . 10 15 15 15 15 18 25 Most Carried 25 | . 10 11 11 15 15 20 25 Average Carried 15 | . 7 10 9 14 15 15 23 Final Capacity 25 | 8 15 15 15 15 15 25 25 Final Carried 25 | 6 10 11 10 15 15 19 25 Class Distribution -------------------- 29% | Derelict-Mutant 25% | Mutant 19% | Scavenger-Mutant 12% | Skirmisher 5% | Commander-Mutant 5% | Derelict-Skirmisher Dominant Class ---------------- Mutant | -10/Materials Mutant | -10/Mines Mutant | -9/Materials Mutant | -9/Storage Scavenger-Mutant | -9/Recycling Derelict-Mutant | -9/Scraptown Skirmisher | -6/Factory Resources | -11 -10 -10 -9 -9 -9 -9 -6 ----------- Run | Yrd Mat Min Mat Sto Rec Scr Fac Matter Collected 1451 | 200 . 55 . 802 . 125 269 Remotely . | . . . . . . . . Salvage Created 1007 | . 57 . . 582 . . 368 Parts 63 | . 2 . . 39 . . 22 Haulers Intercepted 2 | . 1 . . . . . 1 Recyclers Shooed 1 | . . . . 1 . . . Parts Field Recycled . | . . . . . . . . Retrieved Matter . | . . . . . . . . Parts Self-Destructed . | . . . . . . . . Prevented . | . . . . . . . . Parts Restored . | . . . . . . . . Kills | -11 -10 -10 -9 -9 -9 -9 -6 ------- Run | Yrd Mat Min Mat Sto Rec Scr Fac Combat Hostiles Destroyed 25 | . . . . 17 . . 8 Guns 14 | . . . . 10 . . 4 AOE 11 | . . . . 7 . . 4 Classes Destroyed 9 | . 1 . . 7 . . 1 Worker 1 | . . . . 1 . . . Hauler 2 | . 1 . . . . . 1 Operator 1 | . . . . 1 . . . Watcher 1 | . . . . 1 . . . Swarmer 7 | . . . . 3 . . 4 Grunt 13 | . . . . 11 . . 2 Duelist 1 | . . . . 1 . . . Sentry 3 | . . . . 2 . . 1 Programmer 1 | . . . . . . . 1 Best Kill Streak 5 | . 1 . . 5 . . 4 Combat Bots Only 5 | . . . . 5 . . 4 Max Kills in Single Turn 4 | . 1 . . 3 . . 4 Gunslinging . | . . . . . . . . Exploded 4 | . . . . 3 . . 4 Melee . | . . . . . . . . Uniques/NPCs Destroyed . | . . . . . . . . Combat | -11 -10 -10 -9 -9 -9 -9 -6 -------- Run | Yrd Mat Min Mat Sto Rec Scr Fac Hostile Shots Fired 134 | . . . 2 73 . . 59 Missed 38 | . . . . 21 . . 17 Hits 96 | . . . 2 52 . . 42 Projectile 96 | . . . 2 52 . . 42 Critical Strikes 2 | . . . . . . . 2 Damage Taken 1384 | . 44 . 28 672 . . 640 Core 174 | . . . 14 87 . . 73 Absorbed by Shields . | . . . . . . . . Redirected to Shielding 50 | . . . . . . . 50 Regen/Repaired (Parts) 11 | . . . . . . . 11 Core Remaining (%) 91 | 100 . 100 . . . 74 . Volleys Fired 83 | . 3 . 2 49 . . 29 Largest 2 | . 2 . 1 2 . . 2 Hottest 113 | . 80 . 100 100 . . 113 Shots Fired 160 | . 6 . 2 94 . . 58 Gun 130 | . 6 . . 75 . . 49 Cannon 8 | . . . . . . . 8 Launcher 15 | . . . . 14 . . 1 Special 7 | . . . 2 5 . . . Kinetic 113 | . . . . 64 . . 49 Thermal 15 | . . . 2 5 . . 8 Explosive 15 | . . . . 14 . . 1 Electromagnetic 17 | . 6 . . 11 . . . Robot Hit Streak 45 | . 6 . . 14 . . 45 Robot Miss Streak 2 | . . . . 2 . . 1 Penetration Max . | . . . . . . . . Secondary Targets 2 | . . . . 2 . . . Max Gunslinging Chain 1 | . . . . 1 . . . Shots Hit Robots 119 | . 6 . . 59 . . 54 Core Hits 56 | . 2 . . 35 . . 19 Critical Kills 1 | . . . . 1 . . . Critical Parts Destroyed . | . . . . . . . . Critical Strikes 1 | . . . . 1 . . . Destroy 1 | . . . . 1 . . . Melee Attacks 11 | . . . . . . . 11 Impact 6 | . . . . . . . 6 Slashing . | . . . . . . . . Piercing . | . . . . . . . . Sneak Attacks 5 | . . . . . . . 5 Combat Hostiles . | . . . . . . . . Follow-up Attacks . | . . . . . . . . Damage Inflicted 2611 | . 108 . . 1382 . . 1121 Guns 1548 | . 65 . . 763 . . 720 Cannons 113 | . . . . . . . 113 Explosions 925 | . 43 . . 594 . . 288 Melee . | . . . . . . . . Ramming 25 | . . . . 25 . . . Kinetic 1347 | . . . . 627 . . 720 Thermal 156 | . 43 . . . . . 113 Explosive 882 | . . . . 594 . . 288 Electromagnetic 201 | . 65 . . 136 . . . Impact . | . . . . . . . . Slashing . | . . . . . . . . Piercing . | . . . . . . . . Highest Corruption 3 | . . . . 3 3 . 2 Average Corruption 2 | . . . . 2 3 . 1 Corruption Purged 1 | . . . . . . . 1 Corruption Blocked . | . . . . . . . . Effects 18 | . . . . 14 4 . . Message Errors 4 | . . . . 4 . . . Matter Fused 7 | . . . . 5 2 . . Heat Flow Errors 3 | . . . . 2 1 . . Data Loss (minor) 1 | . . . . . 1 . . Data Loss (major) 1 | . . . . 1 . . . Misfires 1 | . . . . 1 . . . Alerts 1 | . . . . 1 . . . Overload Shots . | . . . . . . . . Overflow Damage 51 | . . . . 3 . . 48 Projectiles . | . . . . . . . . Explosions 51 | . . . . 3 . . 48 Melee . | . . . . . . . . Knockbacks 1 | . . . . 1 . . . Impact 1 | . . . . 1 . . . Kinetic . | . . . . . . . . Secondary . | . . . . . . . . Self-Inflicted Damage 78 | . . . . 22 . . 56 Shots 2 | . . . . 1 . . 1 Rammed . | . . . . . . . . Targets Rammed 6 | . . . . 6 . . . Kicked 6 | . . . . 6 . . . Crushed . | . . . . . . . . Highest Temperature 251 | . 54 . 16 251 243 . 162 Average Temperature 38 | . 29 . 9 31 243 . 51 Received Heat Transfer 393 | . . . 9 258 . . 126 Siege Activations . | . . . . . . . . Martial Activations . | . . . . . . . . Shielding Activations . | . . . . . . . . Robots Disrupted . | . . . . . . . . Combat Hostiles . | . . . . . . . . Robots Corrupted . | . . . . . . . . Combat Hostiles . | . . . . . . . . Parts Fried . | . . . . . . . . Impact Corruptions . | . . . . . . . . Robots Melted . | . . . . . . . . Combat Hostiles . | . . . . . . . . Parts Melted . | . . . . . . . . Heat Transferred 150 | . . . . . . . 150 Parts Sabotaged . | . . . . . . . . Parts Stolen . | . . . . . . . . Parts Stripped . | . . . . . . . . Power Chain Reactions 1 | . 1 . . . . . . Alert | -11 -10 -10 -9 -9 -9 -9 -6 ------- Run | Yrd Mat Min Mat Sto Rec Scr Fac Maximum Alert Level 1 | . . . . 1 . . . Low Security (%) 71 | . 100 100 100 28 100 . 100 Level 1 28 | . . . . 71 . . . Level 2 . | . . . . . . . . Level 3 . | . . . . . . . . Level 4 . | . . . . . . . . Level 5 . | . . . . . . . . High Security . | . . . . . . . . Max Security . | . . . . . . . . Peak Influence 308 | . 12 . 15 308 57 . 119 Initial 57 | . . . . . 57 . . Average 95 | . 1 . 2 219 39 . 21 Influence Increases 1223 | . 35 . 15 893 5 . 275 Destroy 0b10 Robot/C 680 | . . . . 520 . . 160 Destroy 0b10 Robot/NC 25 | . 5 . . 15 . . 5 Destroy Leader 166 | . 2 . . 132 . . 32 Allied During Kill 80 | . . . . 80 . . . Successful Hack 88 | . 26 . . 16 5 . 41 Disable Machine 105 | . . . 15 75 . . 15 Destroy Structure 79 | . 2 . . 55 . . 22 Influence Decreases 1164 | . 35 . 15 746 140 12 216 Entered New Map 102 | . . . . . 90 12 . Time Decay 741 | . 35 . 15 446 50 . 195 Lost Part 31 | . . . . 10 . . 21 Lost Ally 140 | . . . . 140 . . . Purge Threat 150 | . . . . 150 . . . Squads Dispatched 7 | . . . . 5 . . 2 Investigation 1 | . . . . 1 . . . Extermination 2 | . . . . . . . 2 Reinforcement 2 | . . . . 2 . . . Assault . | . . . . . . . . Garrison 2 | . . . . 2 . . . Intercept . | . . . . . . . . Searches Triggered . | . . . . . . . . Construction Impeded . | . . . . . . . . Haulers Reinforced . | . . . . . . . . Active Scanning Responses . | . . . . . . . . Cargo Convoy Interrupts . | . . . . . . . . Stealth | -11 -10 -10 -9 -9 -9 -9 -6 --------- Run | Yrd Mat Min Mat Sto Rec Scr Fac Distress Signals 2 | . . . . 2 . . . Communications Jammed . | . . . . . . . . Distress Signals . | . . . . . . . . Times Spotted 53 | . 6 . 1 35 . . 11 Peak Tracking Total 7 | . 2 . 2 7 . . 4 Tactical Retreats . | . . . . . . . . Traps | -11 -10 -10 -9 -9 -9 -9 -6 ------- Run | Yrd Mat Min Mat Sto Rec Scr Fac Traps Triggered 5 | . 1 . . 3 . . 1 Indirectly . | . . . . . . . . Trap Hack Attempts . | . . . . . . . . Triggered . | . . . . . . . . Disarmed . | . . . . . . . . Reprogrammed . | . . . . . . . . Reused . | . . . . . . . . Traps Extracted . | . . . . . . . . Installed . | . . . . . . . . Triggered . | . . . . . . . . Machines | -11 -10 -10 -9 -9 -9 -9 -6 ---------- Run | Yrd Mat Min Mat Sto Rec Scr Fac Machines Disabled 7 | . . . 1 5 . . 1 Max in Single Turn 2 | . . . 1 2 . . 1 Garrison Access 1 | . . . . 1 . . . Machines Repaired . | . . . . . . . . Machines Dismantled . | . . . . . . . . Machines Sabotaged . | . . . . . . . . Overloaded Fab Kills . | . . . . . . . . Hacking | -11 -10 -10 -9 -9 -9 -9 -6 --------- Run | Yrd Mat Min Mat Sto Rec Scr Fac Machines Accessed 29 | . 3 . . 10 2 6 8 Terminals 17 | . 3 . . 9 1 . 4 Fabricators 1 | . . . . . . . 1 Repair Stations 2 | . . . . . . . 2 Recycling Units 2 | . . . . . 1 . 1 Scanalyzers . | . . . . . . . . Garrison Access 1 | . . . . 1 . . . Total Hacks 75 | . 9 . . 21 5 20 20 Successful 48 | . 6 . . 10 2 20 10 Failed 27 | . 3 . . 11 3 . 10 Catastrophic 3 | . . . . 2 . . 1 Database Lockouts . | . . . . . . . . Manual 8 | . . . . 2 . . 6 Terminals 44 | . 9 . . 20 3 . 12 Fabricators 2 | . . . . . . . 2 Repair Stations 4 | . . . . . . . 4 Recycling Units 4 | . . . . . 2 . 2 Scanalyzers . | . . . . . . . . Garrison Access 1 | . . . . 1 . . . Terminal Hacks 38 | . 6 . . 8 1 20 3 Record 14 | . 1 . . . . 13 . Robot Analysis 7 | . . . . 1 . 6 . Prototype ID Bank 3 | . 1 . . 2 . . . Open Door 3 | . . . . 3 . . . Branch Access Points 1 | . 1 . . . . . . Emergency Access Points 1 | . . . . . . . 1 Terminal Index 1 | . 1 . . . . . . Recycling Unit Index 1 | . . . . . . . 1 Unreport Threat 1 | . . . . 1 . . . Locate Traps 2 | . 1 . . . . . 1 Registered Prototypes 1 | . 1 . . . . . . Zone Layout 2 | . . . . 1 1 . . Proto ID Catalog 1 | . . . . . . 1 . Fabricator Hacks 1 | . . . . . . . 1 Network Status 1 | . . . . . . . 1 Repair Station Hacks 3 | . . . . . . . 3 Scan Component 2 | . . . . . . . 2 Repair 1 | . . . . . . . 1 Recycling Unit Hacks 1 | . . . . . 1 . . Retrieve Components 1 | . . . . . 1 . . Scanalyzer . | . . . . . . . . Garrison Access Hacks 1 | . . . . 1 . . . Seal Access 1 | . . . . 1 . . . Unauthorized Hacks 4 | . . . . 1 . . 3 Terminals 3 | . . . . 1 . . 2 Track 1 | . . . . . . . 1 Botnet 2 | . . . . 1 . . 1 Fabricators . | . . . . . . . . Repair Stations . | . . . . . . . . Recycling Units 1 | . . . . . . . 1 Recyclers 1 | . . . . . . . 1 Scanalyzers . | . . . . . . . . Garrison Access . | . . . . . . . . Data Cores Recovered . | . . . . . . . . Used . | . . . . . . . . Hacking Detections 19 | . 3 . . 7 2 . 7 Full Trace Events 1 | . . . . 1 . . . Feedback Events . | . . . . . . . . Feedback Blocked . | . . . . . . . . Robot Schematics Acquired . | . . . . . . . . Robots Built . | . . . . . . . . Authchips . | . . . . . . . . Time . | . . . . . . . . Total Robot Build Rating . | . . . . . . . . Part Schematics Acquired . | . . . . . . . . Parts Built . | . . . . . . . . Authchips . | . . . . . . . . Time . | . . . . . . . . Total Part Build Rating . | . . . . . . . . Part Studies Acquired . | . . . . . . . . Parts Repaired 1 | . . . . . . . 1 Time 32 | . . . . . . . 32 Parts Recycled . | . . . . . . . . Recycled Matter . | . . . . . . . . Retrieved Matter . | . . . . . . . . Retrieved Components . | . . . . . . . . Parts Scanalyzed . | . . . . . . . . Part Schematics Acquired . | . . . . . . . . Parts Damaged . | . . . . . . . . Bothacking | -11 -10 -10 -9 -9 -9 -9 -6 ------------ Run | Yrd Mat Min Mat Sto Rec Scr Fac Used RIF Installer . | . . . . . . . . Robots Hacked 1 | . . . . . . . 1 Non-combat 1 | . . . . . . . 1 Combat . | . . . . . . . . Robot Hacks Applied 5 | . . . . . . . 5 parse_system 2 | . . . . . . . 2 no_distress 1 | . . . . . . . 1 find_fabricator 1 | . . . . . . . 1 find_dsf 1 | . . . . . . . 1 Relay Couplers Released . | . . . . . . . . Fabnet Peak Effective % . | . . . . . . . . Robots Rewired . | . . . . . . . . Allies Hacked . | . . . . . . . . Hacks Repelled . | . . . . . . . . Allies | -11 -10 -10 -9 -9 -9 -9 -6 -------- Run | Yrd Mat Min Mat Sto Rec Scr Fac Total Allies 10 | . . . . 10 . . . Largest Group 10 | . . . . 10 3 . . Highest-Rated Group 88 | . . . . 88 24 . . Highest-Rated Ally 16 | . . . . 16 8 . . Initial UFD Resources 24 | . . . . . . . 24 Total Orders 3 | . . . . . 3 . . STAY 3 | . . . . . 3 . . Ally Attacks 53 | . . . . 53 . . . Total Damage 497 | . . . . 497 . . . Kills 9 | . . . . 9 . . . Allies Corrupted . | . . . . . . . . Allies Melted . | . . . . . . . . Intel | -11 -10 -10 -9 -9 -9 -9 -6 ------- Run | Yrd Mat Min Mat Sto Rec Scr Fac Active Infowar (turns) 4374 | . 170 266 66 855 100 1958 959 Sensors 942 | . . . . . . . 942 Structural 4374 | . 170 266 66 855 100 1958 959 Machine Analysis 783 | . . . . . . . 783 Robot Analysis Total 7 | . . . . 1 . 6 . Derelict Logs Recovered . | . . . . . . . . Drone Launches . | . . . . . . . . Drone Recoveries . | . . . . . . . . Exploration | -11 -10 -10 -9 -9 -9 -9 -6 ------------- Run | Yrd Mat Min Mat Sto Rec Scr Fac Turns Passed 4821 | . 345 266 68 1125 100 1958 959 Spaces Moved 3746 | 1 224 140 47 691 84 1893 666 Core . | . . . . . . . . Treads . | . . . . . . . . Legs 1423 | 1 224 140 . 530 84 444 . Wheels 2323 | . . . 47 161 . 1449 666 Hover . | . . . . . . . . Flight . | . . . . . . . . Fastest Speed 90 | 120 120 190 110 105 120 90 105 Average Speed 114 | 120 143 190 110 120 120 101 116 Slowest Speed 190 | 120 190 190 110 190 120 120 138 Overloaded Moves . | . . . . . . . . Propulsion Burnouts . | . . . . . . . . Robots Hopped . | . . . . . . . . Potential Cave-ins . | . . . . . . . . Cave-ins Triggered . | . . . . . . . . Exploration Rate (%) 40 | 2 46 57 6 88 19 87 20 Regions Visited 7 Branch Regions 4 Pre-discovered Areas . | . . . . . . . . Known Exits Taken 2 | . 1 . 1 . . . . Unknown Exits Taken 5 | 1 . 1 . 1 1 1 . Scrap Searched 6 | . . 1 . . . 5 . Spaces Dug 3 | . . . . . . . 3 Terrain Destroyed 103 | . 2 . . 78 . . 23 Melee 3 | . . . . . . . 3 Projectile 5 | . . . . . . . 5 AOE 95 | . 2 . . 78 . . 15 Terrain Rammed . | . . . . . . . . Walls Destroyed . | . . . . . . . . Machines Disabled . | . . . . . . . . Actions | -11 -10 -10 -9 -9 -9 -9 -6 --------- Run | Yrd Mat Min Mat Sto Rec Scr Fac Total 4107 | . 243 140 56 876 83 1929 780 Wait 86 | . 1 . . 58 . 3 24 Move 3739 | . 223 139 46 690 83 1892 666 Hop . | . . . . . . . . Pick Up 55 | . 7 1 2 19 . 8 18 Fast Attach 19 | . 1 . . 4 . 7 7 Attach 11 | . 1 . 3 4 . . 3 Detach 6 | . 1 . 1 1 . 2 1 Swap 42 | . 2 . 2 24 . 5 9 Drop 48 | . 4 . . 20 . 12 12 Fire 83 | . 3 . 2 49 . . 29 Melee 11 | . . . . . . . 11 Ram . | . . . . . . . . Kick 6 | . . . . 6 . . . Crush . | . . . . . . . . Escape Stasis . | . . . . . . . . Rewire 1 | . . . . 1 . . . Trap . | . . . . . . . . Miscellaneous . | . . . . . . . . Route ------- -11/Scrapyard -10/Materials (discovered 3 exits: [*Mat] / *Min x2) -10/Mines -9/Materials -9/Storage (discovered 2 exits: [*Mat] / *Rec) -9/Recycling -9/Scraptown (discovered 2 exits: *Fac x2) -6/Factory (discovered 1 exit: *Fac) History --------- Turn | Location | Event 1 | -11/Scrapyard | Discovered new exit (range 0) 1 | -11/Scrapyard | Entered Materials 35 | -10/Materials | Identified exit to Mines 214 | -10/Materials | Discovered new exit (range 8) 316 | -10/Materials | Build established: Mutant 346 | -10/Materials | Entered Mines 577 | -10/Mines | Discovered new exit (range 12) 612 | -10/Mines | Entered Materials 612 | -9/Materials | Evolved 2 slots: Propulsion x2 629 | -9/Materials | Discovered new exit (range 10) 671 | -9/Materials | Identified exit to Storage 680 | -9/Materials | Entered Storage 702 | -9/Storage | Garrison activated, responded to threat 1346 | -9/Storage | Discovered new exit (range 6) 1384 | -9/Storage | Assisted by bots powering up and referring to "LRC-V3" 1707 | -9/Storage | Lost 5 allies 1800 | -9/Storage | Used back door to open Recycling access 1800 | -9/Storage | Discovered new exit (range 5) 1805 | -9/Storage | Entered Recycling 1805 | -9/Recycling | Accompanied by 3 allies 1868 | -9/Recycling | Scanned before Scraplab entrance 1881 | -9/Recycling | Discovered new exit (range 11) 1885 | -9/Recycling | Entered Scraplab 1905 | -9/Recycling | Entered Scraptown 1905 | -9/Scraptown | System corruption cleaned by C-Scrubber 1965 | -9/Scraptown | Build established: Scavenger-Mutant 1971 | -9/Scraptown | Visited Cyclists 2028 | -9/Scraptown | Visited UFD Registry 2028 | -9/Scraptown | Registered with UFD as "Kinetieater" 2060 | -9/Scraptown | Visited Abandonware Association 2073 | -9/Scraptown | Learned abandonware demo "MELTYB.EXE" 2076 | -9/Scraptown | Learned abandonware demo "OVRCLOCK.EXE" 2102 | -9/Scraptown | Visited Sword Containment 2125 | -9/Scraptown | Visited Analyses Database 2307 | -9/Scraptown | Visited DA-N13 Charitable Foundation 2319 | -9/Scraptown | Found DCF Scrap (30 items) 2348 | -9/Scraptown | Visited Supply Room 2372 | -9/Scraptown | Visited Scrapoid Pod Storage 2401 | -9/Scraptown | Visited Cartography Club 2518 | -9/Scraptown | Visited Junk Repository 2544 | -9/Scraptown | Visited Science Testing Area 2561 | -9/Scraptown | Visited Science Guys 2655 | -9/Scraptown | Visited The Evicted 2678 | -9/Scraptown | Visited Assassins FH 2733 | -9/Scraptown | Discovered new exit (range 5) 2751 | -9/Scraptown | Build established: Derelict-Mutant 3071 | -9/Scraptown | Entered Cyclist Reading Room 3093 | -9/Scraptown | Visited Spacefarers 3110 | -9/Scraptown | Visited IN-MT5's Study 3811 | -9/Scraptown | Discovered new exit (range 5) 3863 | -9/Scraptown | Entered Factory 3863 | -6/Factory | Evolved 6 slots: Utility x6 3976 | -6/Factory | Repaired Weight Redist. System? 4327 | -6/Factory | Discovered new exit (range 16) 4344 | -6/Factory | Identified exit to Factory 4423 | -6/Factory | Build established: Skirmisher 4822 | -6/Factory | Self-destructed Last Messages --------------- 04689_ U-05 Engineer builds a Wall. 04698_ U-05 Engineer lays Concrete. 04699_ U-05 Engineer builds a Wall. 04703_ U-05 Engineer lays Concrete. 04706_ U-05 Engineer builds a Wall. 04710_ U-05 Engineer lays Concrete. 04712_ U-05 Engineer builds a Door. 04719_ Dropped Imp. System Restoration Module. 04719_ Acquired Transmission Jammer. 04732_ >> Machine Analyzer network decryption results: 04732_ Terminal x1 04754_ U-05 Engineer builds a Wall. 04781_ >> Machine Analyzer network decryption results: 04781_ Repair Station x1 04794_ Triggered Heavy Explosive Trap. 04794_ An explosion rips through the floor. 04804_ The unstable cave ceiling collapses. 04808_ K-01 Serf collects debris. 04816_ Angular Momentum Engine destroyed. 04819_ K-01 Serf cleans the Fusion Modulator. Map ----- +----------------------------------------------------+ | "???????????????????##+####??????????????????????? | | ???????????????????? ##??????????????????????? | | "????????? # ??????? ??????????????????????? | | ##???? # ???R??? " ????????????????????????? | | #+###??? # ?""""?? ????????????????????????? | | ##??? # ?""""?#! #???????????????????????? | | ##?? + ?""""?## ##???????????????????????? | | ##?? # ?""""?## # ???????????????????????? | | ### # ?""""?## + ?"""???"""?????????????? | | ### # ?""""?## # ?"""??""R"?????????????? | | # ??????## R # ?"""??""?"?????????????? | | # ??????## # ???????????????????? | | ##??????## ############?????????????? | | ##??????## m### ########?????????????? | | ##?????### # /k ?????????????? | | #########????#### """ """?????????????? | | ################" """ """ ##??????????? | | ##??????#######"# """ """ ##??????????? | | ##??????##= ! ## A ##??????????? | | ########## ## p """ """ ##??????????? | | ########## " " ## # """ """ ##??????????? | | # ! !! # " " ## ; """ """ ##??????????? | | # ! # " " ## ; ##??????????? | | #! # " " ## ; * ##??????????? | | # # " " ## # ! / ##??????????? | | # ! # " " ## #@ ! ##??????????? | | # """ # " " ## ###############??????????? | | + """ # " " ## ###############??????????? | | # """ # " " ## ##???????????????????????? | | # # ## ##""?????????????????????? | | ############/#### o ##""?????????????????????? | | u ??"T?????????????????????? | | ?? t?""?????????????????????? | | R ?? ??""?????????????????????? | | ??????????????????????????????? | | ???t????????????????????????? | | ##+################# ????????????????????????????? | | ########### ????????????????????????????? | | # ##?????????????????????????????? | | # ] """##?????????????????????????????? | | # """##?????????????????????????????? | | # """##?????????????????????????????? | | + ##?????????????????????????????? | | # """##?????????????????????????????? | | # """##?????????????????????????????? | | # """# ?????????????????????????????? | | # # ?????????????????????????????? | | # """# ?????????????????????????????? | | # """# ?????????????????????????????? | | ########## """# ?????????????????????????????? | +----------------------------------------------------+ Best States ------------- Heat Dissipation 37 Energy Generation 18 Energy Capacity 300 Matter Stores 300 Matter Capacity 300 Sight Range 16 Robot Scan Range 15 Terrain Scan Density 10 Armor Coverage 375 Weapon Shielding 66 Evasion (%) 55 Targeting Accuracy 5 Item Schematics ----------------- None Robot Schematics ------------------ None Fabricated ------------ Nothing Repaired ---------- Weight Redist. System | 50% | -6/Factory Studied --------- None Alien Tech Used ----------------- None Achievements -------------- None Challenges ------------ None Game ------ Seed ImpactGuidedLink Manual? 0 Play Time 01:00:39 Cumulative 98.5 hours Start 2026.03.21 @ 11:09:48 End 2026.03.27 @ 13:32:17 Sessions 3 Manual Loads 0 Difficulty Rogue Special Mode None Game No. 86 Rogue 41 Adventurer 45 Explorer 0 Win Type - Total 3 Types 2/0/0/1/0/0/0/0/0/0 Lore% 60 Gallery% 50 Achievement% 37 Wizard Run 0 Options --------- Layout 0 ASCII 0 Keyboard 1 Movement Numpad Keybinds 0 Fullscreen 1 Font 24/Smallcaps Map View 76x50 Zoom Use 0% Tactical HUD 1 Map Filters NONE Filters NONE Steam 1 RUN: 2053702e-89e4-4aa4-ab46-a2af2cf02d15